[Event "Portugal Open 2020"]
[Site "Lisbon"]
[Date "2020.01.30"]
[Round "7.39"]
[White "Atakay, Mustafa"]
[Black "Tuerk, Philipp"]
[Result "1/2-1/2"]
[ECO "A62"]
[WhiteElo "1886"]
[BlackElo "2106"]
[Annotator "ChessBase"]
[PlyCount "30"]
[EventDate "2020.01.25"]
[EventType "swiss"]
[EventCountry "POR"]
[SourceTitle "playchess.com"]
[Source "ChessBase"]
[SourceQuality "1"]
[TimeControl "5400+30"]

1. d4 {[%emt 0:00:00]} Nf6 {[%emt 0:13:55]} 2. c4 {[%emt 0:00:00]} c5 {[%emt 0:00:27]} 3. d5 {[%emt 0:00:00]} e6 {[%emt 0:00:11]} 4. Nc3 {[%emt 0:00:00]} exd5 {[%emt 0:00:08]} 5. cxd5 {[%emt 0:00:00]} d6 {[%emt 0:00:09]} 6. g3 {[%emt 0:00:15]} g6 {[%emt 0:00:33]} 7. Bg2 {[%emt 0:00:07]} Bg7 {[%emt 0:00:02]} 8. Nf3 {[%emt 0:00:06]} O-O {[%emt 0:00:16]} 9. O-O {[%emt 0:00:04]} a6 {[%emt 0:00:11]} 10. a4 {[%emt 0:00:04]} Re8 {[%emt 0:00:09]} 11. Bf4 {[%emt 0:10:34]} Nh5 {[%emt 0:03:32]} 12. Bg5 {[%emt 0:02:02]} Qb6 {[%emt 0:05:22]} 13. Qc2 {[%emt 0:08:27]} Bf5 {[%emt 0:03:55]} 14. e4 {[%emt 0:01:40]} Bxc3 {[%emt 0:00:25]} 15. exf5 {[%emt 0:00:06]} Qxb2 {[%emt 0:00:09]} 1/2-1/2

[Event "Portugal Open 2020"]
[Site "Lisbon"]
[Date "2020.01.30"]
[Round "7.41"]
[White "Marzano, Carlo"]
[Black "Fanha, Paulo"]
[Result "1/2-1/2"]
[ECO "D31"]
[WhiteElo "2078"]
[BlackElo "1766"]
[Annotator "NA RC"]
[PlyCount "114"]
[EventDate "2020.01.25"]
[EventType "swiss"]
[EventCountry "POR"]
[SourceTitle "playchess.com"]
[Source "ChessBase"]
[SourceQuality "1"]
[TimeControl "5400+30"]

1. d4 {[%emt 0:00:00]} d5 {[%emt 0:00:00]} 2. c4 {[%emt 0:00:00]} e6 {[%emt 0:00:00]} 3. Nc3 {[%emt 0:00:00]} f5 {[%emt 0:00:00]} 4. Bf4 {[%emt 0:00:12]} c6 {[%emt 0:00:00]} 5. e3 {[%emt 0:00:19]} Nf6 $14 {[%emt 0:00:00]} 6. Nf3 {[%emt 0:00:32]} Bd6 {[%emt 0:01:50]} 7. Bd3 {[%emt 0:00:29]} O-O {[%emt 0:00:25]} 8. O-O {[%emt 0:00:18]} Ne4 {[%emt 0:01:00]} 9. Qc2 {[%emt 0:01:08]} g5 {[%emt 0:03:50]} 10. Bxd6 {[%emt 0:01:08]} Nxd6 {[%emt 0:00:08]} 11. Ne5 {[%emt 0:01:03]} Nd7 {[%emt 0:00:41]} 12. Nxd7 {[%emt 0:01:48]} Bxd7 {[%emt 0:00:19]} 13. c5 {[%emt 0:00:41]} Ne4 {[%emt 0:00:19]} 14. f3 {[%emt 0:15:47]} Nxc3 {[%emt 0:01:05]} 15. Qxc3 {[%emt 0:00:12]} Qc7 {[%emt 0:00:18]} 16. f4 {[%emt 0:00:55]} g4 {[%emt 0:00:20]} 17. b4 {[%emt 0:00:15]} a5 {[%emt 0:04:40]} 18. a3 {[%emt 0:01:55]} b5 {[%emt 0:02:50]} 19. a4 {[%emt 0:17:57]} axb4 {[%emt 0:02:41]} 20. Qxb4 {[%emt 0:00:30]} bxa4 {[%emt 0:00:11]} 21. Rxa4 {[%emt 0:00:13]} Rfb8 {[%emt 0:00:42]} 22. Rxa8 {[%emt 0:01:54]} Rxa8 {[%emt 0:00:02]} 23. Rb1 {[%emt 0:00:18]} Ra2 {[%emt 0:03:23]} 24. Qb7 {[%emt 0:08:32]} Qxb7 {[%emt 0:06:54]} 25. Rxb7 {[%emt 0:00:06]} Be8 {[%emt 0:00:09]} 26. Rb1 {[%emt 0:14:57]} Kf7 {[%emt 0:04:24]} 27. Bf1 {[%emt 0:00:45]} Ke7 {[%emt 0:00:20]} 28. Re1 {[%emt 0:01:06]} h5 {[%emt 0:02:14]} 29. Re2 {[%emt 0:03:41]} Rxe2 {[%emt 0:00:45]} 30. Bxe2 {[%emt 0:00:01]} h4 {[%emt 0:00:37]} 31. Kf2 {[%emt 0:00:15]} Kd8 {[%emt 0:00:40]} 32. g3 {[%emt 0:00:48]} h3 {[%emt 0:00:13]} 33. Ke1 {[%emt 0:00:42]} Kc7 {[%emt 0:00:05]} 34. Kd2 {[%emt 0:01:08]} Kb7 {[%emt 0:00:08]} 35. Kc3 {[%emt 0:00:29]} Ka7 {[%emt 0:00:14]} 36. Kb4 {[%emt 0:00:35]} Bd7 {[%emt 0:00:18]} 37. Ka5 {[%emt 0:00:18]} Bc8 {[%emt 0:00:24]} 38. Bd3 {[%emt 0:03:43]} Bb7 {[%emt 0:00:22]} 39. Bc2 {[%emt 0:00:20]} Bc8 {[%emt 0:00:13]} 40. Ba4 {[%emt 0:01:03]} Kb7 {[%emt 0:00:18]} 41. Kb4 {[%emt 0:01:01]} Kc7 {[%emt 0:00:30]} 42. Kc3 {[%emt 0:01:59]} Ba6 {[%emt 0:01:03]} 43. Kd2 {[%emt 0:02:41]} Bf1 {[%emt 0:00:53]} 44. Bb3 {[%emt 0:00:35]} Bb5 {[%emt 0:00:27]} 45. e4 {[%emt 0:00:54]} Ba6 {[%emt 0:02:22]} 46. exf5 {[%emt 0:02:00]} exf5 {[%emt 0:00:03]} 47. Kc3 {[%emt 0:01:22]} Bc8 {[%emt 0:00:51]} 48. Kb4 {[%emt 0:00:15]} Kb7 {[%emt 0:00:17]} 49. Ka5 {[%emt 0:02:19]} Kc7 {[%emt 0:01:22]} 50. Bc2 {[%emt 0:00:17]} Bd7 {[%emt 0:01:12]} 51. Ka6 {[%emt 0:00:29]} Bc8+ {[%emt 0:00:25]} 52. Ka7 {[%emt 0:00:06]} Bd7 {[%emt 0:00:06]} 53. Bd3 {[%emt 0:00:10]} Bc8 {[%emt 0:00:11]} 54. Ba6 {[%emt 0:00:18]} Bd7 {[%emt 0:00:06]} 55. Bd3 {[%emt 0:02:46]} Bc8 {[%emt 0:00:12]} 56. Bc2 {[%emt 0:00:09]} Be6 {[%emt 0:00:34]} 57. Bb3 {[%emt 0:00:50]} Bf7 {[%emt 0:00:13]} 1/2-1/2

[Event "Portugal Open 2020"]
[Site "Lisbon"]
[Date "2020.01.31"]
[Round "8.6"]
[White "Haldorsen, Benjamin"]
[Black "Ghazarian, Tigran"]
[Result "1/2-1/2"]
[ECO "B68"]
[WhiteElo "2463"]
[BlackElo "1668"]
[Annotator "RC"]
[PlyCount "47"]
[EventDate "2020.01.25"]
[EventType "swiss"]
[EventCountry "POR"]
[SourceTitle "playchess.com"]
[Source "ChessBase"]
[SourceQuality "1"]
[TimeControl "5400+30"]

1. e4 {[%emt 0:00:00]} c5 {[%emt 0:00:00]} 2. Nc3 {[%emt 0:00:32]} Nc6 {[%emt 0:00:03]} 3. Nge2 {[%emt 0:00:11]} d6 {[%emt 0:00:12]} 4. d4 {[%emt 0:01:31]} cxd4 {[%emt 0:00:28]} 5. Nxd4 {[%emt 0:00:07]} Nf6 {[%emt 0:00:07]} 6. Bg5 {[%emt 0:05:23]} e6 {[%emt 0:00:26]} 7. Qd2 {[%emt 0:03:07]} a6 {[%emt 0:00:42]} 8. O-O-O {[%emt 0:00:24]} Bd7 {[%emt 0:00:08]} 9. f4 {[%emt 0:00:15]} Be7 {[%emt 0:03:25]} 10. Nf3 {[%emt 0:05:09]} h6 {[%emt 0:19:59]} 11. Bh4 {[%emt 0:04:16]} Qc7 {[%emt 0:05:47]} 12. Kb1 {[%emt 0:10:12]} O-O-O {[%emt 0:06:03]} 13. Bd3 {[%emt 0:06:10]} Kb8 {[%emt 0:07:15]} 14. Rhg1 {[%emt 0:01:38]} Bc8 {[%emt 0:01:45]} 15. Qe1 {[%emt 0:10:05]} Nd7 {[%emt 0:03:27]} 16. Bf2 {[%emt 0:00:52]} Nc5 {[%emt 0:03:40]} 17. h4 {[%emt 0:04:48]} h5 {[%emt 0:16:39]} 18. Ng5 {[%emt 0:08:19]} Rhf8 {[%emt 0:00:32]} 19. Nh7 {[%emt 0:05:26]} Rfe8 {[%emt 0:00:28]} 20. Ng5 {[%emt 0:00:01]} Bf8 {[%emt 0:01:37]} 21. Nh7 {[%emt 0:02:09]} Be7 {[%emt 0:00:16]} 22. Ng5 {[%emt 0:00:07]} Bf8 {[%emt 0:03:57]} 23. Nh7 {[%emt 0:05:34]} Be7 {[%emt 0:00:06]} 24. Ng5 {[%emt 0:00:41]} 1/2-1/2

[Event "Portugal Open 2020"]
[Site "Lisbon"]
[Date "2020.01.31"]
[Round "8.30"]
[White "Martin Duque, Jesus"]
[Black "Marzano, Carlo"]
[Result "1-0"]
[ECO "C55"]
[WhiteElo "2447"]
[BlackElo "2078"]
[Annotator "RC"]
[PlyCount "97"]
[EventDate "2020.01.25"]
[EventType "swiss"]
[EventCountry "POR"]
[SourceTitle "playchess.com"]
[Source "ChessBase"]
[SourceQuality "1"]
[TimeControl "5400+30"]

1. e4 {[%emt 0:00:00]} e5 {[%emt 0:01:47]} 2. Nf3 {[%emt 0:00:00]} Nc6 {[%emt 0:00:06]} 3. Bc4 {[%emt 0:00:00]} Nf6 {[%emt 0:00:06]} 4. d3 {[%emt 0:00:00]} Be7 {[%emt 0:00:05]} 5. O-O {[%emt 0:00:00]} O-O {[%emt 0:00:05]} 6. Re1 {[%emt 0:00:00]} d6 {[%emt 0:00:04]} 7. a4 {[%emt 0:00:00]} h6 {[%emt 0:00:15]} 8. a5 {[%emt 0:01:39]} a6 {[%emt 0:01:03]} 9. h3 {[%emt 0:01:08]} Nh7 {[%emt 0:00:24]} 10. Nc3 {[%emt 0:02:43]} Ng5 {[%emt 0:01:15]} 11. Nd5 {[%emt 0:03:27]} Nxf3+ {[%emt 0:02:24]} 12. Qxf3 {[%emt 0:00:04]} Bg5 {[%emt 0:13:08]} 13. Bxg5 {[%emt 0:03:16]} hxg5 {[%emt 0:04:47]} 14. c3 {[%emt 0:01:24]} Nxa5 {[%emt 0:17:03]} 15. Rxa5 {[%emt 0:01:55]} c6 {[%emt 0:00:07]} 16. Raa1 {[%emt 0:03:15]} cxd5 {[%emt 0:00:13]} 17. Bxd5 {[%emt 0:00:02]} g6 {[%emt 0:04:33]} 18. Qe3 {[%emt 0:06:15]} Qe7 {[%emt 0:03:23]} 19. d4 {[%emt 0:05:44]} Kg7 {[%emt 0:02:00]} 20. dxe5 {[%emt 0:09:07]} dxe5 {[%emt 0:00:13]} 21. Qb6 {[%emt 0:00:57]} Rd8 {[%emt 0:04:52]} 22. Red1 {[%emt 0:03:00]} Qf6 {[%emt 0:05:09]} 23. Qc7 {[%emt 0:01:23]} Rd7 {[%emt 0:01:57]} 24. Qc5 {[%emt 0:01:42]} Qe7 {[%emt 0:06:10]} 25. Qb6 {[%emt 0:08:12]} Rd6 {[%emt 0:03:36]} 26. Qb4 {[%emt 0:00:58]} Rd7 {[%emt 0:04:11]} 27. Ra4 {[%emt 0:01:57]} Qxb4 {[%emt 0:01:23]} 28. Rxb4 {[%emt 0:00:01]} Ra7 {[%emt 0:06:46]} 29. Rb6 {[%emt 0:00:33]} Rc7 {[%emt 0:00:41]} 30. Rd3 {[%emt 0:05:18]} Bd7 {[%emt 0:02:18]} 31. Rg3 {[%emt 0:00:09]} f6 {[%emt 0:00:23]} 32. Rd3 {[%emt 0:00:34]} Be8 {[%emt 0:01:22]} 33. Rf3 {[%emt 0:04:52]} Bc6 {[%emt 0:00:17]} 34. c4 {[%emt 0:00:32]} Rc8 {[%emt 0:05:38]} 35. Rd3 {[%emt 0:01:54]} Bxd5 {[%emt 0:02:48]} 36. cxd5 {[%emt 0:00:21]} Rc7 {[%emt 0:00:56]} 37. Rf3 {[%emt 0:02:12]} Rf7 {[%emt 0:00:03]} 38. Rc3 {[%emt 0:00:23]} Ra8 {[%emt 0:00:13]} 39. f3 {[%emt 0:02:01]} Rd8 {[%emt 0:00:10]} 40. Kf2 {[%emt 0:00:40]} Rdd7 {[%emt 0:00:01]} 41. Ke3 {[%emt 0:01:34]} Rfe7 {[%emt 0:00:32]} 42. Kd3 {[%emt 0:02:06]} Rf7 {[%emt 0:00:18]} 43. Kc4 {[%emt 0:03:14]} Rc7+ {[%emt 0:00:42]} 44. Kb4 {[%emt 0:00:16]} Rcd7 {[%emt 0:00:09]} 45. d6 {[%emt 0:01:11]} Kh6 {[%emt 0:01:45]} 46. Kc5 {[%emt 0:00:59]} Kh5 {[%emt 0:00:03]} 47. g3 {[%emt 0:01:37]} Kh6 {[%emt 0:00:02]} 48. Kd5 {[%emt 0:00:15]} Kg7 {[%emt 0:00:10]} 49. Ke6 {[%emt 0:00:53]} 1-0

[Event "Portugal Open 2020"]
[Site "Lisbon"]
[Date "2020.02.01"]
[Round "9.5"]
[White "Ghazarian, Tigran"]
[Black "Taboas Rodriguez, Daniel"]
[Result "1-0"]
[ECO "C09"]
[WhiteElo "1668"]
[BlackElo "2348"]
[Annotator "NA"]
[PlyCount "91"]
[EventDate "2020.01.25"]
[EventType "swiss"]
[EventCountry "POR"]
[SourceTitle "playchess.com"]
[Source "ChessBase"]
[SourceQuality "1"]
[TimeControl "5400+30"]

1. e4 {[%emt 0:00:00]} e6 {[%emt 0:02:11]} 2. d4 {[%emt 0:00:00]} d5 {[%emt 0:00:04]} 3. Nd2 {[%emt 0:00:06]} c5 {[%emt 0:00:05]} 4. Ngf3 {[%emt 0:00:06]} Nc6 5. exd5 {[%emt 0:00:14]} exd5 {[%emt 0:00:12]} 6. Bb5 {[%emt 0:00:07]} Bd6 {[%emt 0:00:04]} 7. O-O {[%emt 0:00:12]} cxd4 {[%emt 0:00:47]} 8. Nb3 {[%emt 0:00:38]} Nge7 {[%emt 0:00:06]} 9. Nfxd4 {[%emt 0:01:47]} O-O {[%emt 0:00:08]} 10. Re1 {[%emt 0:00:52]} Bc7 {[%emt 0:04:03]} 11. c3 {[%emt 0:00:48]} Qd6 {[%emt 0:00:27]} 12. g3 {[%emt 0:00:19]} Qf6 {[%emt 0:00:31]} 13. Qf3 {[%emt 0:01:51]} Qxf3 {[%emt 0:23:10]} 14. Nxf3 {[%emt 0:00:17]} Bg4 {[%emt 0:00:16]} 15. Nfd4 {[%emt 0:00:53]} Bd6 {[%emt 0:00:14]} 16. Be3 {[%emt 0:03:39]} Ne5 {[%emt 0:14:11]} 17. f4 {[%emt 0:01:40]} N5c6 18. Kg2 {[%emt 0:05:40]} Rfd8 $16 {[%emt 0:15:07]} 19. Bf2 {[%emt 0:02:00]} Bd7 {[%emt 0:02:16]} 20. Rad1 {[%emt 0:00:43]} Kf8 {[%emt 0:00:40]} 21. Rd2 {[%emt 0:05:25]} Rac8 {[%emt 0:08:53]} 22. Be2 {[%emt 0:02:02]} g6 {[%emt 0:02:55]} 23. Red1 {[%emt 0:07:09]} Be6 {[%emt 0:01:41]} 24. Bf3 {[%emt 0:06:21]} Re8 {[%emt 0:08:05]} 25. Nb5 {[%emt 0:24:29]} Bb8 {[%emt 0:03:53]} 26. Nc5 {[%emt 0:00:09]} a6 {[%emt 0:02:16]} 27. Na3 {[%emt 0:00:04]} Nd8 {[%emt 0:05:30]} 28. Nc2 {[%emt 0:02:09]} Bd6 {[%emt 0:00:26]} 29. Nb3 {[%emt 0:00:05]} b5 {[%emt 0:00:42]} 30. a3 {[%emt 0:01:15]} Ndc6 31. Nb4 {[%emt 0:01:36]} Nxb4 {[%emt 0:01:14]} 32. axb4 {[%emt 0:00:08]} Red8 {[%emt 0:00:46]} 33. Ra1 {[%emt 0:02:21]} Ra8 {[%emt 0:00:16]} 34. Nc5 {[%emt 0:00:36]} Bxc5 {[%emt 0:00:21]} 35. Bxc5 {[%emt 0:00:05]} Ke8 {[%emt 0:00:40]} 36. Rad1 {[%emt 0:00:38]} Rd7 {[%emt 0:00:29]} 37. Ra1 {[%emt 0:05:28]} h5 {[%emt 0:00:55]} 38. Kf2 {[%emt 0:00:06]} Nf5 {[%emt 0:00:41]} 39. Be2 {[%emt 0:01:15]} Rb7 {[%emt 0:00:18]} 40. b3 {[%emt 0:00:53]} Ne7 {[%emt 0:03:18]} 41. Rda2 {[%emt 0:00:26]} Kd7 {[%emt 0:01:54]} 42. Rxa6 {[%emt 0:00:36]} Rxa6 {[%emt 0:00:02]} 43. Rxa6 {[%emt 0:00:03]} d4 {[%emt 0:00:28]} 44. Bxd4 {[%emt 0:03:00]} Bxb3 {[%emt 0:00:02]} 45. Ra7 {[%emt 0:00:36]} Rxa7 {[%emt 0:00:26]} 46. Bxb5+ {[%emt 0:00:05]} 1-0

[Event "Portugal Open 2020"]
[Site "Lisbon"]
[Date "2020.02.01"]
[Round "9.7"]
[White "Goluch, Piotr"]
[Black "Ten Hertog, Hugo"]
[Result "0-1"]
[ECO "E04"]
[WhiteElo "2413"]
[BlackElo "2503"]
[Annotator "ChessBase"]
[PlyCount "90"]
[EventDate "2020.01.25"]
[EventType "swiss"]
[EventCountry "POR"]
[SourceTitle "playchess.com"]
[Source "ChessBase"]
[SourceQuality "1"]
[TimeControl "5400+30"]

1. d4 {[%emt 0:00:00]} d5 {[%emt 0:00:18]} 2. c4 {[%emt 0:00:00]} e6 {[%emt 0:00:03]} 3. Nf3 {[%emt 0:00:00]} Nf6 {[%emt 0:00:04]} 4. g3 {[%emt 0:00:00]} dxc4 {[%emt 0:00:46]} 5. Bg2 {[%emt 0:00:15]} a6 {[%emt 0:00:05]} 6. O-O {[%emt 0:04:09]} Nc6 {[%emt 0:00:23]} 7. Nc3 {[%emt 0:00:09]} Rb8 {[%emt 0:01:06]} 8. e4 {[%emt 0:00:05]} Be7 {[%emt 0:00:45]} 9. Qe2 {[%emt 0:00:28]} b5 {[%emt 0:00:35]} 10. Bf4 {[%emt 0:06:43]} Nxd4 {[%emt 0:19:27]} 11. Nxd4 {[%emt 0:00:04]} Qxd4 {[%emt 0:00:04]} 12. Bxc7 {[%emt 0:00:06]} Rb7 {[%emt 0:00:16]} 13. Rad1 {[%emt 0:00:20]} Qc5 {[%emt 0:01:03]} 14. Bf4 {[%emt 0:00:32]} e5 {[%emt 0:02:15]} 15. Be3 {[%emt 0:01:11]} Qc7 {[%emt 0:04:33]} 16. Nd5 {[%emt 0:02:51]} Nxd5 {[%emt 0:00:05]} 17. exd5 {[%emt 0:00:03]} Bd6 {[%emt 0:05:47]} 18. f4 {[%emt 0:00:05]} O-O {[%emt 0:00:32]} 19. fxe5 {[%emt 0:14:17]} Bxe5 {[%emt 0:00:06]} 20. Qd2 {[%emt 0:10:25]} Rd8 {[%emt 0:07:06]} 21. Bd4 {[%emt 0:00:31]} Bxd4+ {[%emt 0:05:04]} 22. Qxd4 {[%emt 0:00:06]} Qb6 {[%emt 0:00:30]} 23. Rfe1 {[%emt 0:03:29]} Kf8 {[%emt 0:20:09]} 24. Kf2 {[%emt 0:00:05]} Qxd4+ {[%emt 0:04:01]} 25. Rxd4 {[%emt 0:00:05]} Bf5 {[%emt 0:02:50]} 26. Re5 {[%emt 0:05:29]} g6 {[%emt 0:04:51]} 27. g4 {[%emt 0:02:18]} Bb1 {[%emt 0:03:16]} 28. a3 {[%emt 0:00:24]} Re7 {[%emt 0:00:38]} 29. Rxe7 {[%emt 0:01:18]} Kxe7 {[%emt 0:00:03]} 30. g5 {[%emt 0:00:04]} Kd6 {[%emt 0:01:27]} 31. Rh4 {[%emt 0:00:22]} Rh8 {[%emt 0:00:56]} 32. Bf3 {[%emt 0:02:12]} Kc5 {[%emt 0:04:39]} 33. Ke3 {[%emt 0:00:04]} a5 {[%emt 0:01:17]} 34. Kd2 {[%emt 0:01:05]} Bf5 {[%emt 0:02:27]} 35. a4 {[%emt 0:01:35]} bxa4 {[%emt 0:05:40]} 36. Be2 {[%emt 0:03:58]} Rb8 {[%emt 0:00:21]} 37. Rxc4+ {[%emt 0:00:44]} Kxd5 {[%emt 0:00:03]} 38. Rxa4 {[%emt 0:00:39]} Rxb2+ {[%emt 0:00:03]} 39. Ke3 {[%emt 0:00:05]} Rb3+ {[%emt 0:00:50]} 40. Kf2 {[%emt 0:00:09]} Ke5 {[%emt 0:00:32]} 41. h4 {[%emt 0:03:10]} Rb4 {[%emt 0:01:38]} 42. Rxa5+ {[%emt 0:00:05]} Kf4 {[%emt 0:00:05]} 43. Ra7 {[%emt 0:02:51]} Be6 {[%emt 0:00:03]} 44. Rc7 {[%emt 0:00:25]} Rb2 {[%emt 0:01:05]} 45. Rc3 {[%emt 0:03:43]} Bg4 {[%emt 0:01:03]} 0-1

[Event "Portugal Open 2020"]
[Site "Lisbon"]
[Date "2020.02.01"]
[Round "9.8"]
[White "Mihajlov, Sebastian"]
[Black "Haldorsen, Benjamin"]
[Result "1/2-1/2"]
[ECO "B20"]
[WhiteElo "2374"]
[BlackElo "2463"]
[Annotator "ChessBase"]
[PlyCount "49"]
[EventDate "2020.01.25"]
[EventType "swiss"]
[EventCountry "POR"]
[SourceTitle "playchess.com"]
[Source "ChessBase"]
[SourceQuality "1"]
[TimeControl "5400+30"]

1. e4 {[%emt 0:02:17]} c5 {[%emt 0:00:00]} 2. Be2 {[%emt 0:00:23]} Nc6 {[%emt 0:03:49]} 3. f4 {[%emt 0:00:05]} g6 {[%emt 0:02:32]} 4. Nf3 {[%emt 0:00:37]} Bg7 {[%emt 0:01:04]} 5. O-O {[%emt 0:00:07]} d5 {[%emt 0:01:17]} 6. d3 {[%emt 0:00:06]} e6 {[%emt 0:02:40]} 7. c3 {[%emt 0:00:27]} Nge7 {[%emt 0:00:18]} 8. Qe1 {[%emt 0:00:09]} b6 {[%emt 0:03:01]} 9. Na3 {[%emt 0:02:44]} Qd7 {[%emt 0:05:35]} 10. Kh1 {[%emt 0:11:09]} Bb7 {[%emt 0:04:53]} 11. e5 {[%emt 0:15:28]} h5 {[%emt 0:17:52]} 12. d4 {[%emt 0:03:40]} Nf5 {[%emt 0:00:08]} 13. Nc2 {[%emt 0:01:56]} cxd4 {[%emt 0:04:50]} 14. cxd4 {[%emt 0:02:22]} a5 {[%emt 0:02:24]} 15. a4 {[%emt 0:09:20]} Ba6 {[%emt 0:03:16]} 16. Bxa6 {[%emt 0:00:29]} Rxa6 {[%emt 0:00:02]} 17. Bd2 {[%emt 0:03:23]} Ra8 {[%emt 0:03:36]} 18. Bc3 {[%emt 0:00:06]} Rc8 {[%emt 0:03:28]} 19. Rc1 {[%emt 0:02:31]} Nb8 {[%emt 0:02:31]} 20. b3 {[%emt 0:06:43]} Bh6 {[%emt 0:03:00]} 21. Bd2 {[%emt 0:00:40]} Bf8 {[%emt 0:03:15]} 22. Ne3 {[%emt 0:00:24]} Rxc1 {[%emt 0:00:55]} 23. Qxc1 {[%emt 0:00:04]} Nxe3 {[%emt 0:01:15]} 24. Bxe3 {[%emt 0:00:05]} Be7 {[%emt 0:02:36]} 25. Qc3 {[%emt 0:07:48]} 1/2-1/2

[Event "Portugal Open 2020"]
[Site "Lisbon"]
[Date "2020.02.01"]
[Round "9.10"]
[White "Spraggett, Kevin"]
[Black "Bashirli, Nail"]
[Result "1-0"]
[ECO "B69"]
[WhiteElo "2501"]
[BlackElo "2379"]
[Annotator "ChessBase"]
[PlyCount "107"]
[EventDate "2020.01.25"]
[EventType "swiss"]
[EventCountry "POR"]
[SourceTitle "playchess.com"]
[Source "ChessBase"]
[SourceQuality "1"]
[TimeControl "5400+30"]

1. e4 {[%emt 0:00:00]} c5 {[%emt 0:00:23]} 2. Nf3 {[%emt 0:00:11]} Nf6 {[%emt 0:00:29]} 3. Nc3 {[%emt 0:00:20]} d6 {[%emt 0:00:20]} 4. d4 {[%emt 0:00:24]} cxd4 {[%emt 0:00:06]} 5. Nxd4 {[%emt 0:00:05]} Nc6 {[%emt 0:04:39]} 6. Bg5 {[%emt 0:01:44]} e6 {[%emt 0:01:38]} 7. Qd2 {[%emt 0:00:25]} a6 {[%emt 0:00:08]} 8. O-O-O {[%emt 0:00:13]} Bd7 {[%emt 0:00:03]} 9. f4 {[%emt 0:00:46]} Be7 {[%emt 0:00:05]} 10. Nf3 {[%emt 0:00:23]} b5 {[%emt 0:00:06]} 11. Bxf6 {[%emt 0:00:17]} gxf6 {[%emt 0:00:04]} 12. f5 {[%emt 0:01:32]} Qb6 {[%emt 0:00:13]} 13. Qh6 {[%emt 0:00:50]} O-O-O {[%emt 0:00:19]} 14. Qh5 {[%emt 0:00:30]} Rhf8 {[%emt 0:00:29]} 15. Kb1 {[%emt 0:00:30]} Kb8 {[%emt 0:10:31]} 16. Bd3 {[%emt 0:01:13]} Rc8 {[%emt 0:08:00]} 17. Rhe1 {[%emt 0:04:45]} Qa5 {[%emt 0:02:00]} 18. fxe6 {[%emt 0:21:34]} fxe6 {[%emt 0:04:15]} 19. Ne2 {[%emt 0:00:18]} Rc7 {[%emt 0:03:46]} 20. Nfd4 {[%emt 0:00:59]} Nb4 {[%emt 0:07:16]} 21. Nc1 {[%emt 0:01:03]} Rfc8 {[%emt 0:27:30]} 22. Qf7 {[%emt 0:07:00]} Bf8 {[%emt 0:08:12]} 23. c3 {[%emt 0:06:01]} Nxd3 {[%emt 0:03:28]} 24. Nxd3 {[%emt 0:00:41]} b4 {[%emt 0:11:14]} 25. Nxb4 {[%emt 0:06:09]} e5 {[%emt 0:01:15]} 26. Ne6 {[%emt 0:03:48]} Bxe6 {[%emt 0:01:01]} 27. Qxe6 {[%emt 0:00:06]} Rb7 {[%emt 0:00:55]} 28. Qd5 {[%emt 0:05:42]} Qb6 {[%emt 0:01:01]} 29. Qd2 {[%emt 0:00:13]} Ka8 {[%emt 0:01:55]} 30. Nd5 {[%emt 0:00:12]} Qa5 {[%emt 0:01:42]} 31. b3 {[%emt 0:02:22]} Rcb8 {[%emt 0:00:56]} 32. Kb2 {[%emt 0:01:12]} Qa4 {[%emt 0:01:25]} 33. Qc2 {[%emt 0:00:39]} a5 {[%emt 0:00:28]} 34. c4 {[%emt 0:00:34]} Qc6 {[%emt 0:00:30]} 35. Qc3 {[%emt 0:01:15]} Qc5 {[%emt 0:00:22]} 36. Rf1 {[%emt 0:04:07]} a4 {[%emt 0:00:38]} 37. Ra1 {[%emt 0:00:24]} Bh6 {[%emt 0:00:30]} 38. Kc2 {[%emt 0:00:15]} Rg8 {[%emt 0:00:34]} 39. g3 {[%emt 0:00:14]} Rg4 {[%emt 0:00:29]} 40. b4 {[%emt 0:00:39]} Qa7 {[%emt 0:00:34]} 41. Rae1 {[%emt 0:00:23]} a3 {[%emt 0:00:25]} 42. Rxf6 {[%emt 0:00:31]} Rf7 {[%emt 0:00:19]} 43. Rxf7 {[%emt 0:05:23]} Qxf7 {[%emt 0:00:03]} 44. Qxa3+ {[%emt 0:00:07]} Kb8 {[%emt 0:00:40]} 45. Qd3 {[%emt 0:00:18]} Qf2+ {[%emt 0:01:02]} 46. Re2 {[%emt 0:00:06]} Qg1 {[%emt 0:00:31]} 47. Kb3 {[%emt 0:00:55]} Rg7 {[%emt 0:00:20]} 48. Nc3 {[%emt 0:02:33]} Rg6 {[%emt 0:00:36]} 49. a4 {[%emt 0:00:47]} Rf6 {[%emt 0:00:24]} 50. c5 {[%emt 0:01:33]} Bf8 {[%emt 0:00:32]} 51. c6 {[%emt 0:00:50]} Rf7 {[%emt 0:00:23]} 52. Nd5 {[%emt 0:00:43]} Ra7 {[%emt 0:00:34]} 53. a5 {[%emt 0:00:30]} Bh6 {[%emt 0:00:10]} 54. Qc2 {[%emt 0:00:37]} 1-0

[Event "Portugal Open 2020"]
[Site "Lisbon"]
[Date "2020.02.01"]
[Round "9.11"]
[White "Sabuk, Piotr"]
[Black "Jaracz, Pawel"]
[Result "1/2-1/2"]
[ECO "D11"]
[WhiteElo "2360"]
[BlackElo "2466"]
[Annotator "ChessBase"]
[PlyCount "75"]
[EventDate "2020.01.25"]
[EventType "swiss"]
[EventCountry "POR"]
[SourceTitle "playchess.com"]
[Source "ChessBase"]
[SourceQuality "1"]
[TimeControl "5400+30"]

1. d4 {[%emt 0:00:00]} d5 {[%emt 0:00:00]} 2. c4 {[%emt 0:00:00]} c6 {[%emt 0:00:00]} 3. Nf3 {[%emt 0:00:00]} Nf6 {[%emt 0:00:01]} 4. g3 {[%emt 0:00:00]} Bg4 {[%emt 0:00:46]} 5. Ne5 {[%emt 0:00:28]} Bf5 {[%emt 0:00:35]} 6. cxd5 {[%emt 0:01:01]} cxd5 {[%emt 0:00:45]} 7. Nc3 {[%emt 0:02:05]} Nc6 {[%emt 0:00:39]} 8. Bg2 {[%emt 0:12:49]} Rc8 {[%emt 0:01:09]} 9. Qa4 {[%emt 0:05:03]} a6 {[%emt 0:10:00]} 10. O-O {[%emt 0:04:55]} e6 {[%emt 0:12:39]} 11. Bg5 {[%emt 0:15:23]} Qb6 {[%emt 0:26:56]} 12. Nxc6 {[%emt 0:16:32]} bxc6 {[%emt 0:01:09]} 13. Bxf6 {[%emt 0:04:14]} gxf6 {[%emt 0:00:05]} 14. e4 {[%emt 0:00:17]} dxe4 {[%emt 0:00:06]} 15. d5 {[%emt 0:05:32]} Be7 {[%emt 0:10:30]} 16. dxe6 {[%emt 0:00:28]} Bxe6 {[%emt 0:00:07]} 17. Bxe4 {[%emt 0:01:02]} f5 {[%emt 0:01:11]} 18. Bd5 {[%emt 0:10:58]} O-O {[%emt 0:12:00]} 19. Bxe6 {[%emt 0:00:18]} fxe6 {[%emt 0:00:03]} 20. Qc4 {[%emt 0:01:23]} Rf6 {[%emt 0:04:16]} 21. Rad1 {[%emt 0:04:29]} Rc7 {[%emt 0:03:22]} 22. Rfe1 {[%emt 0:02:10]} Qb4 {[%emt 0:00:55]} 23. Qe2 {[%emt 0:03:45]} a5 {[%emt 0:02:47]} 24. Rd3 {[%emt 0:00:29]} Rb7 {[%emt 0:00:58]} 25. b3 {[%emt 0:02:22]} Bf8 {[%emt 0:00:48]} 26. Qe5 {[%emt 0:02:03]} Rg6 {[%emt 0:01:36]} 27. Red1 {[%emt 0:01:19]} Qc5 {[%emt 0:02:37]} 28. Qf4 {[%emt 0:01:19]} Rf7 {[%emt 0:00:52]} 29. Na4 {[%emt 0:00:44]} e5 {[%emt 0:00:50]} 30. Qd2 {[%emt 0:02:33]} Qb4 {[%emt 0:00:59]} 31. Qc2 {[%emt 0:00:50]} Qe4 {[%emt 0:02:34]} 32. Nc5 {[%emt 0:00:47]} Bxc5 {[%emt 0:00:37]} 33. Qxc5 {[%emt 0:00:01]} f4 {[%emt 0:00:05]} 34. Qc4 {[%emt 0:01:07]} Qxc4 {[%emt 0:00:46]} 35. bxc4 {[%emt 0:00:01]} fxg3 {[%emt 0:00:16]} 36. hxg3 {[%emt 0:00:17]} Rg4 {[%emt 0:00:04]} 37. Ra3 {[%emt 0:01:11]} Rxc4 {[%emt 0:00:24]} 38. Rxa5 {[%emt 0:00:14]} 1/2-1/2